bitfinex/quotes_SOLUSD_20260310
["timestamp","ask_amount","ask_price","bid_price","bid_amount"]
[1773165932661,1.42746041,87.889,87.86,12.90697983]
[1773165933059,1.42746041,87.887,87.861,1.42529036]
[1773165934181,1.42746041,87.887,87.86,0.1]
[1773165934679,11.3781176,87.888,87.862,1.42529036]
[1773165934886,1.42746041,87.887,87.862,1.42529036]
[1773165935086,11.37837653,87.886,87.862,1.42529036]
[1773165935263,12.80583694,87.886,87.863,12.80664542]
[1773165936187,1.42746041,87.885,87.863,1.42529036]
[1773165936388,1.42746041,87.885,87.86,0.1]
[1773165936886,1.42746041,87.885,87.84,3.97440243]
[1773165936887,3.97440243,87.88,87.84,3.97440243]
[1773165937183,11.3805779,87.869,87.84,11.3843213]
[1773165937481,1.42746041,87.868,87.841,1.42529036]
[1773165937664,0.759,87.895,87.851,1.42529036]
[1773165937665,11.37859085,87.885,87.851,1.42529036]
[1773165937865,11.37859085,87.885,87.861,1.42529036]
[1773165938080,1.42746041,87.884,87.852,1.42529036]
[1773165938775,1.42746041,87.884,87.854,1.42529036]
[1773165939166,1.42746041,87.883,87.854,1.42529036]
[1773165939867,12.13637273,87.894,87.861,1.42529036]
[1773165940069,1.42746041,87.889,87.854,1.42529036]
[1773165940286,1.42746041,87.889,87.86,3.97440243]
[1773165940597,1.42746041,87.889,87.861,1.42529036]
[1773165940791,11.3781176,87.888,87.862,11.3814846]
[1773165940967,1.42746041,87.887,87.862,11.3814846]
[1773165941168,30.0,87.881,87.862,11.3814846]
[1773165941878,2.18646041,87.894,87.871,1.42529036]
[1773165942085,1.42746041,87.892,87.87,3.97440243]
[1773165942278,1.42746041,87.892,87.87,5.39969279]
[1773165942984,0.759,87.894,87.872,1.42529036]
[1773165943482,0.759,87.894,87.881,1.42529036]
[1773165944902,1.42746041,87.924,87.883,1.42529036]
[1773165945210,1.42746041,87.932,87.901,1.42529036]
[1773165945371,1.06400001,87.934,87.911,1.42529036]
[1773165945570,29.56028108,87.959,87.921,1.42529036]
[1773165945888,7.2322284,87.958,87.94,3.97440243]
[1773165946081,1.42746041,87.976,87.95,3.97440243]
[1773165946470,1.42746041,87.976,87.95,5.39969279]
[1773165946671,7.23785713,87.979,87.96,3.97440243]
[1773165946873,7.23785713,87.979,87.961,1.42529036]
[1773165947081,7.23785713,87.979,87.96,3.97440243]
[1773165947289,1.4359915,87.978,87.942,1.42481618]
[1773165947583,1.4359915,87.977,87.95,5.39921861]
[1773165948368,1.4359915,87.977,87.94,3.97440243]
[1773165949271,1.42613724,87.975,87.94,3.97440243]
[1773165949890,1.42613724,87.975,87.94,15.3457265]
[1773165950078,1.42613724,87.975,87.95,3.97440243]
[1773165950879,11.36673638,87.976,87.95,3.97440243]
[1773165951182,7.23785713,87.979,87.96,3.97440243]
[1773165951381,11.36647798,87.978,87.96,3.97440243]
[1773165951584,11.36647798,87.978,87.951,1.51225856]
[1773165951987,12.79261522,87.978,87.951,1.51225856]
[1773165952189,12.79261522,87.978,87.951,12.88215593]
[1773165953575,1.42613724,87.977,87.951,1.51225856]
[1773165954078,1.42613724,87.977,87.941,11.37126027]
[1773165954409,1.42613724,87.977,87.95,3.97440243]
[1773165955793,1.42613724,87.975,87.95,3.97440243]
[1773165957198,1.42613724,87.975,87.945,11.37074058]
[1773165957785,1.42613724,87.975,87.95,3.97440243]
[1773165957990,1.42613724,87.973,87.95,3.97440243]
[1773165958892,1.42613724,87.973,87.95,15.34444288]
[1773165960101,12.79339045,87.972,87.95,15.34444288]
[1773165960310,11.36673397,87.977,87.951,1.51225856]
[1773165960480,28.78273436,87.962,87.951,1.51225856]
[1773165960682,28.19669745,87.962,87.951,1.51225856]
[1773165960895,1.52095647,87.961,87.94,3.97440243]
[1773165961087,28.19669745,87.962,87.95,3.97440243]
[1773165961479,1.52095647,87.969,87.95,3.97440243]
[1773165961694,30.0,87.959,87.95,3.97440243]
[1773165961892,30.0,87.959,87.908,1.13755289]
[1773165962084,7.23785713,87.979,87.94,3.97440243]
[1773165962085,1.52095647,87.957,87.94,3.97440243]
[1773165962684,1.52095647,87.957,87.93,3.97440243]
[1773165962912,1.52095647,87.952,87.93,3.97440243]
[1773165964004,30.0,87.947,87.931,11.37255347]
[1773165964205,30.0,87.947,87.94,3.97440243]
[1773165964604,28.41681137,87.977,87.931,11.37255347]
[1773165964605,1.52095647,87.974,87.95,3.97440243]
[1773165964816,1.52095647,87.974,87.931,39.80393716]
[1773165964817,1.72095647,88.0,87.96,7.94880486]
[1773165965107,1.72095647,88.0,87.98,3.97440243]
[1773165965705,0.2,88.0,87.99,3.97440243]
[1773165965908,11.36160789,88.016,87.99,3.97440243]
[1773165966312,12.88256436,88.016,87.99,3.97440243]
[1773165966515,1.52095647,88.015,87.99,3.97440243]
[1773165967122,1.52095647,88.015,87.98,3.97440243]
[1773165967422,1.52095647,88.015,87.99,3.97440243]
[1773165967608,1.52095647,88.015,87.99,3.96694497]
[1773165968189,1.52095647,88.013,87.991,11.36479867]
[1773165970304,1.52095647,88.022,87.991,11.36479867]
[1773165970504,0.2,88.03,88.01,3.96694497]
[1773165970715,1.52095647,88.046,88.01,3.96694497]
[1773165970907,11.35775488,88.046,88.02,3.96694497]
[1773165971110,1.52095647,88.045,88.02,3.96694497]
[1773165971814,1.52095647,88.045,88.01,3.96694497]
[1773165972401,1.52095647,88.039,88.0,3.96694497]
[1773165972819,1.52095647,88.029,87.961,1.13686747]
[1773165973116,130.6165099,88.044,87.98,3.96694497]
[1773165973117,1.52095647,88.019,87.98,3.96694497]
[1773165973317,1.52095647,88.009,87.97,3.96694497]
[1773165973618,1.52095647,88.009,87.97,10.62961688]
[1773165974521,1.52095647,88.007,87.971,11.36738243]
[1773165974720,1.52095647,88.007,87.97,10.62961688]
[1773165974900,1.52095647,87.999,87.966,11.36798066]
[1773165975105,1.52095647,87.999,87.97,10.62961688]
[1773165975522,1.52095647,87.999,87.95,10.62961688]
[1773165975804,10.62961688,88.0,87.95,10.62961688]
[1773165975805,1.52095647,87.989,87.95,10.62961688]
[1773165976211,1.52095647,87.987,87.95,10.62961688]
[1773165976421,1.52095647,87.979,87.94,10.62961688]
[1773165976621,1.52095647,87.979,87.95,10.62961688]
[1773165977520,1.52095647,87.976,87.95,10.62961688]
[1773165978433,11.36486623,87.991,87.96,10.62961688]
[1773165978603,30.0,87.974,87.96,10.62961688]
[1773165978803,11.36486623,87.991,87.96,10.62961688]
[1773165978804,1.52095647,87.99,87.96,10.62961688]
[1773165979003,11.3641766,87.996,87.97,10.62961688]
[1773165979227,12.88513307,87.996,87.97,10.62961688]
[1773165979436,1.52095647,87.995,87.96,10.62961688]
[1773165980449,1.52095647,87.987,87.95,10.62961688]
[1773165980651,1.52095647,87.987,87.951,11.36996736]
[1773165981014,1.52095647,87.987,87.96,10.62961688]
[1773165982242,1.52095647,87.997,87.97,10.62961688]
[1773165982423,11.36415291,87.996,87.971,11.36738243]
[1773165982622,1.52095647,87.997,87.971,11.36738243]
[1773165982826,1.52095647,87.995,87.971,11.36738243]
[1773165985039,1.52095647,87.989,87.95,10.62961688]
[1773165985346,39.77543922,87.994,87.95,10.62961688]
[1773165985347,1.52095647,87.979,87.95,10.62961688]
[1773165986338,1.52095647,87.979,87.94,10.62961688]
[1773165986744,1.52095647,87.979,87.95,10.62961688]
[1773165987540,1.52095647,87.977,87.94,10.62961688]
[1773165989442,1.52095647,87.97,87.941,11.37126027]
[1773165990644,1.52095647,87.968,87.941,11.37126027]
[1773165991628,11.36789932,87.967,87.941,11.37126027]
[1773165991829,12.88885579,87.967,87.941,11.37126027]
[1773165992034,11.36699479,87.974,87.95,10.62961688]
[1773165992237,12.88795126,87.974,87.95,10.62961688]
[1773165992448,45.45159172,88.006,87.941,39.79941096]
[1773165992449,1.52095647,87.983,87.96,10.62961688]
[1773165992744,1.52095647,87.979,87.941,11.37126027]
[1773165992949,39.78086425,87.982,87.933,14.32056084]
[1773165992950,1.52095647,87.969,87.933,14.32056084]
[1773165993334,1.52095647,87.959,87.933,14.32056084]
[1773165993536,1.52095647,87.959,87.921,11.37377166]
[1773165993733,1.52095647,87.957,87.921,11.37377166]
[1773165994254,1.52095647,87.954,87.921,11.37377166]
[1773165995550,1.52095647,87.952,87.921,11.37377166]
[1773165996455,1.52095647,87.95,87.921,11.37377166]
[1773165997758,1.52095647,87.947,87.921,11.37377166]
[1773165998848,11.37061378,87.946,87.921,11.37377166]
[1773165999032,12.89157025,87.946,87.921,11.37377166]
[1773165999233,1.52095647,87.945,87.921,11.37377166]
[1773166000856,1.52095647,87.943,87.92,3.97288688]
[1773166001054,1.52095647,87.943,87.91,3.97288688]
[1773166001551,11.37087237,87.944,87.9,3.97288688]
[1773166001552,1.52095647,87.939,87.9,3.97288688]
[1773166001742,1.52095647,87.929,87.89,3.97288688]
[1773166001942,1.52095647,87.919,87.88,3.97288688]
[1773166002538,30.0,87.917,87.88,3.97288688]
[1773166002737,1.52095647,87.915,87.88,15.35198222]
[1773166003630,1.52095647,87.915,87.86,28.45424523]
[1773166003831,1.52095647,87.889,87.86,3.97288688]
[1773166004037,1.52095647,87.889,87.851,11.38286135]
[1773166004534,1.52095647,87.879,87.85,0.1]
[1773166004844,1.52095647,87.877,87.85,0.1]
[1773166005055,1.52095647,87.874,87.85,0.1]
[1773166005360,1.52095647,87.869,87.85,0.1]
[1773166006754,1.52095647,87.867,87.85,0.1]
[1773166006958,1.52095647,87.867,87.825,28.46564449]
[1773166007252,1.52095647,87.867,87.83,22.14844888]
[1773166007461,1.52095647,87.867,87.84,10.66292369]
[1773166007655,1.52095647,87.877,87.83,39.94960352]
[1773166007958,1.52095647,87.877,87.84,10.66292369]
[1773166008736,30.0,87.865,87.84,10.66292369]
[1773166008945,30.0,87.865,87.841,11.38420555]
[1773166009344,30.0,87.865,87.841,39.84471943]
[1773166009664,1.52095647,87.863,87.841,11.38420555]
[1773166010751,1.52095647,87.889,87.85,10.66292369]
[1773166010947,10.66292369,87.89,87.85,10.66292369]
[1773166010948,1.52095647,87.887,87.851,11.38290969]
[1773166012551,1.52095647,87.879,87.851,11.38290969]
[1773166013157,1.52095647,87.877,87.851,11.38290969]
[1773166013668,11.378917,87.882,87.86,10.66292369]
[1773166013868,1.52095647,87.881,87.86,10.66292369]
[1773166014361,1.52095647,87.881,87.851,11.38290969]
[1773166014672,10.66292369,87.88,87.85,10.66292369]
[1773166014849,1.52095647,87.879,87.846,11.38348136]
[1773166015049,1.52095647,87.877,87.841,11.38420555]
[1773166015267,1.52095647,87.877,87.85,10.66292369]
[1773166015443,1.52095647,87.877,87.84,10.66292369]
[1773166015649,1.52095647,87.869,87.834,11.38506829]
[1773166015847,1.52095647,87.869,87.831,11.3855017]
[1773166016067,1.52095647,87.868,87.831,11.3855017]
[1773166016261,1.52095647,87.868,87.831,39.84925595]
[1773166016448,1.52095647,87.868,87.831,11.3855017]
[1773166017172,1.52095647,87.866,87.831,39.84925595]
[1773166017870,1.52095647,87.866,87.84,10.66292369]
[1773166018255,31.52095647,87.862,87.84,10.66292369]
[1773166018866,1.52095647,87.861,87.84,10.66292369]
[1773166019363,1.52095647,87.859,87.83,0.1]
[1773166019568,1.52095647,87.859,87.83,10.76292369]
[1773166019754,1.52095647,87.866,87.84,10.66292369]
[1773166019950,1.52095647,87.864,87.84,10.66292369]
[1773166020147,1.52095647,87.864,87.831,39.84925595]
[1773166020352,1.52095647,87.864,87.84,10.66292369]
[1773166020553,8.24455053,87.876,87.84,10.66292369]
[1773166020554,1.52095647,87.871,87.84,10.66292369]
[1773166020966,1.52095647,87.871,87.831,39.84925595]
[1773166020967,1.52095647,87.869,87.831,39.84925595]
[1773166021156,1.52095647,87.869,87.84,10.66292369]
[1773166021357,1.52095647,87.867,87.841,11.38420555]
[1773166022275,7.10680427,87.876,87.85,10.66292369]
[1773166022568,11.37863547,87.884,87.86,10.66292369]
[1773166022767,1.52095647,87.885,87.86,10.66292369]
[1773166023271,1.52095647,87.885,87.861,11.38161414]
[1773166023768,1.52095647,87.893,87.861,11.38161414]
[1773166024073,1.52095647,87.893,87.861,39.83564949]
[1773166025586,1.52095647,87.891,87.861,11.38161414]
[1773166026986,1.52095647,87.891,87.861,39.83564949]
[1773166027362,1.52095647,87.9,87.881,11.3790239]
[1773166027583,1.52095647,87.9,87.871,11.38031887]
[1773166028103,1.52095647,87.906,87.871,11.38031887]
[1773166028466,1.52095647,87.906,87.87,3.97878628]
[1773166028467,3.97878628,87.9,87.86,3.97878628]
[1773166028674,1.52095647,87.879,87.84,3.97878628]
[1773166028976,1.52095647,87.879,87.801,61.8]
[1773166028977,1.52095647,87.859,87.82,3.97878628]
[1773166029276,1.52095647,87.849,87.821,11.38667718]
[1773166029475,1.52095647,87.847,87.811,39.85833209]
[1773166030761,1.52095647,87.845,87.811,39.85833209]
[1773166032169,11.38355758,87.846,87.802,11.3892622]
[1773166032170,1.47095647,87.839,87.802,11.3892622]
[1773166032486,1.47095647,87.839,87.811,11.41484713]
[1773166032685,1.47095647,87.847,87.82,10.66816214]
[1773166033083,12.85442304,87.847,87.812,0.02675225]
[1773166033274,1.47095647,87.846,87.812,0.02675225]
[1773166033666,1.47095647,87.846,87.811,11.38809488]
[1773166033871,1.47095647,87.839,87.806,11.3886708]
[1773166034586,1.47095647,87.837,87.801,11.38939192]
[1773166034785,1.47095647,87.837,87.801,39.86287172]
[1773166036072,1.47095647,87.837,87.81,10.66816214]
[1773166036691,1.47095647,87.837,87.811,11.38809488]
[1773166037189,1.47095647,87.837,87.811,39.85833209]
[1773166038175,1.13774626,87.857,87.8,0.1]
[1773166038176,1.47095647,87.829,87.8,0.1]
[1773166038372,11.38485359,87.836,87.79,10.76816214]
[1773166038373,1.42095647,87.819,87.79,0.1]
[1773166038573,1.42095647,87.799,87.78,0.1]
[1773166038772,10.66816214,87.8,87.78,0.1]
[1773166038773,1.42095647,87.797,87.78,0.1]
[1773166039492,1.42095647,87.797,87.761,28.48631445]
[1773166039493,1.40531095,87.789,87.761,11.39458301]
[1773166039987,1.40531095,87.789,87.761,39.88104054]
[1773166040190,1.40531095,87.789,87.761,11.39458301]
[1773166040398,1.40531095,87.789,87.76,0.1]
[1773166040692,1.40531095,87.787,87.76,0.1]
[1773166040876,1.40531095,87.787,87.76,10.76816214]
[1773166041287,1.40531095,87.787,87.76,0.1]
[1773166041587,1.40531095,87.787,87.76,10.76816214]
[1773166041992,1.40531095,87.799,87.77,10.85432066]
[1773166042174,1.40531095,87.799,87.771,0.18615852]
[1773166042581,1.40531095,87.807,87.78,10.66816214]
[1773166042784,1.40531095,87.807,87.781,11.39198687]
[1773166042983,1.40531095,87.799,87.762,28.48583798]
[1773166043184,1.40531095,87.799,87.77,10.66816214]
[1773166043972,1.40531095,87.799,87.767,0.1825155]
[1773166044176,1.40531095,87.799,87.77,10.66816214]
[1773166044690,1.40531095,87.799,87.771,0.17535436]
[1773166044877,1.40531095,87.808,87.78,10.66816214]
[1773166045697,1.40531095,87.808,87.78,4.74803917]
[1773166046203,0.08176825,87.813,87.79,10.84001527]
[1773166046402,0.08176825,87.813,87.791,0.17185313]
[1773166046577,1.40531095,87.832,87.8,10.84001527]
[1773166046773,1.40531095,87.832,87.8,10.66816214]
[1773166047306,1.40531095,87.829,87.801,11.38939192]
[1773166048482,1.40531095,87.829,87.81,10.66816214]
[1773166049182,1.40531095,87.829,87.811,11.38809488]
[1773166049677,1.40531095,87.828,87.79,10.66816214]
[1773166049883,1.40531095,87.819,87.781,11.39191052]
[1773166050100,1.40531095,87.819,87.781,39.87187771]
[1773166050791,1.40531095,87.819,87.781,11.39191052]
[1773166051194,1.13774626,87.828,87.771,28.4831033]
[1773166051195,1.40531095,87.807,87.771,28.4831033]
[1773166051395,1.40531095,87.807,87.78,10.66816214]
[1773166052587,1.40531095,87.799,87.771,11.39328479]
[1773166052980,1.40531095,87.789,87.761,11.39458301]
[1773166053409,10.66816214,87.79,87.761,11.39458301]
[1773166053410,1.40531095,87.787,87.761,11.39458301]
[1773166054009,1.40531095,87.787,87.761,39.88104054]
[1773166055492,1.40531095,87.787,87.77,3.98804172]
[1773166055801,1.40531095,87.805,87.771,0.13888545]
[1773166056105,12.79431372,87.804,87.771,0.13888545]
[1773166056302,1.40531095,87.803,87.771,0.13888545]
[1773166058115,1.40531095,87.801,87.771,11.39328479]
[1773166058311,1.40531095,87.801,87.772,0.13270767]
[1773166058491,1.40531095,87.808,87.78,10.67996115]
[1773166058695,1.40531095,87.808,87.772,0.13270767]
[1773166059403,1.40531095,87.808,87.78,10.67996115]
[1773166059590,1.40531095,87.808,87.772,0.13270767]
[1773166060612,1.40531095,87.808,87.78,10.67996115]
[1773166060992,1.40531095,87.808,87.778,0.12371011]
[1773166061188,1.40531095,87.807,87.771,39.87649678]
[1773166062602,11.38874336,87.806,87.771,11.39328479]
[1773166062808,1.40531095,87.799,87.761,11.39458301]
[1773166063813,1.40531095,87.799,87.761,39.99609576]
[1773166064196,1.40531095,87.799,87.762,0.11505522]
[1773166064513,1.40531095,87.799,87.761,39.99609576]
[1773166064720,1.40531095,87.797,87.761,39.88104054]
[1773166064904,1.40531095,87.789,87.761,11.39458301]
[1773166066006,1.40531095,87.789,87.76,0.1]
[1773166066700,11.3910785,87.788,87.76,0.1]
[1773166066908,1.40531095,87.787,87.76,0.1]
[1773166068213,1.40478087,87.796,87.761,0.10127091]
[1773166068820,1.40478087,87.802,87.771,11.4918924]
[1773166070601,1.37095647,87.8,87.771,11.39328479]
[1773166071619,1.37095647,87.799,87.771,11.39328479]
[1773166072717,1.37095647,87.799,87.77,10.76571949]
[1773166072937,1.37095647,87.798,87.77,10.67996115]
[1773166073624,11.38856915,87.808,87.769,28.48382119]
[1773166073625,1.37095647,87.808,87.781,0.08575834]
[1773166074126,1.37095647,87.808,87.78,10.67996115]
[1773166074424,1.37095647,87.808,87.77,10.67996115]
[1773166074630,1.37095647,87.808,87.762,0.08080546]
[1773166074831,1.37095647,87.799,87.762,0.08080546]
[1773166075606,1.37095647,87.799,87.77,3.98716114]
[1773166076010,1.37095647,87.799,87.762,0.08080546]
[1773166076807,1.37095647,87.797,87.77,3.98716114]
[1773166077731,1.37095647,87.797,87.762,0.08080546]
[1773166078930,1.37095647,87.795,87.77,3.98716114]
[1773166079108,1.37095647,87.795,87.762,0.08080546]
[1773166079627,1.37095647,87.795,87.76,4.08716114]
[1773166079816,1.37095647,87.789,87.76,0.1]
[1773166080012,1.37095647,87.789,87.76,4.08716114]
[1773166080230,1.37095647,87.789,87.761,0.06893763]
[1773166080410,1.37095647,87.805,87.771,0.06893763]
[1773166081122,1.37095647,87.803,87.771,0.06893763]
[1773166081918,105.67095647,87.811,87.781,0.06436934]
[1773166082414,1.37095647,87.81,87.781,0.06436934]
[1773166083135,1.37095647,87.81,87.781,11.45635621]
[1773166083505,1.37095647,87.808,87.781,11.39198687]
[1773166083710,1.37095647,87.808,87.781,11.45411509]
[1773166084856,1.37095647,87.808,87.781,11.44970449]
[1773166085066,1.37095647,87.815,87.79,4.04487876]
[1773166085367,1.37095647,87.815,87.761,11.39458301]
[1773166085368,1.37095647,87.799,87.761,11.39458301]
[1773166085671,1.37095647,87.799,87.762,0.05771762]
[1773166085840,1.37095647,87.789,87.761,11.39458301]
[1773166086672,1.37095647,87.769,87.737,28.49418355]
[1773166086865,1.37095647,87.769,87.74,3.98716114]
[1773166087070,1.37095647,87.767,87.73,11.39860936]
[1773166087370,1.37095647,87.749,87.706,28.50411443]
[1773166087552,1.37095647,87.749,87.71,3.98716114]
[1773166088051,3.98716114,87.75,87.706,28.55754324]
[1773166088052,1.37095647,87.739,87.706,0.05342881]
[1773166088272,1.37095647,87.739,87.71,3.98716114]
[1773166089061,1.37095647,87.739,87.711,11.40107854]
[1773166089885,11.39749171,87.739,87.711,11.40107854]
[1773166090083,1.37095647,87.738,87.711,11.40107854]
[1773166090391,1.37095647,87.737,87.711,11.40107854]
[1773166090783,1.37095647,87.737,87.711,39.90377489]
[1773166091867,1.37095647,87.737,87.72,10.6929009]
[1773166092085,1.37095647,87.745,87.72,10.6929009]
[1773166092482,7.0453304,87.764,87.74,10.6929009]
[1773166092786,8.41628687,87.764,87.74,10.6929009]
[1773166093084,7.0453304,87.764,87.74,10.6929009]
[1773166093279,7.0453304,87.764,87.737,0.04112845]
[1773166093483,1.37095647,87.762,87.73,10.6929009]
[1773166093995,7.0453304,87.764,87.74,10.6929009]
[1773166094181,1.37095647,87.768,87.74,10.6929009]
[1773166095099,1.37095647,87.779,87.742,0.03337055]
[1773166095391,1.37095647,87.777,87.741,11.39718033]
[1773166095595,1.37095647,87.777,87.741,39.89013117]
[1773166096278,1.37095647,87.777,87.75,10.6929009]
[1773166096483,1.37095647,87.785,87.76,10.6929009]
[1773166096869,1.37095647,87.785,87.751,0.0295565]
[1773166097069,1.37095647,87.785,87.75,10.6929009]
[1773166097796,1.37095647,87.783,87.751,11.39588152]
[1773166098592,1.37095647,87.783,87.76,10.6929009]
[1773166099772,2.79454939,87.806,87.77,10.6929009]
[1773166100089,1.37095647,87.827,87.8,10.6929009]
[1773166100765,11.38589608,87.828,87.761,96.85395561]
[1773166100766,1.37095647,87.809,87.761,39.88104054]
[1773166100965,1.37095647,87.809,87.77,10.6929009]
[1773166101695,1.37095647,87.809,87.78,10.6929009]
[1773166101895,1.37095647,87.807,87.781,11.39198687]
[1773166102069,1.37095647,87.827,87.8,10.6929009]
[1773166104107,1.37095647,87.827,87.781,39.87195406]
[1773166104108,1.37095647,87.825,87.797,11.38983886]
[1773166104303,1.37095647,87.825,87.8,10.6929009]
[1773166104697,1.37095647,87.825,87.792,11.39045095]
[1773166104904,1.37095647,87.825,87.752,45.58259365]
[1773166104905,1.37095647,87.799,87.77,10.6929009]
[1773166105087,1.37095647,87.799,87.76,11.39471285]
[1773166105088,1.37095647,87.799,87.76,22.08761375]
[1773166106000,1.37095647,87.797,87.77,10.6929009]
[1773166106999,1.37095647,87.797,87.76,22.08761375]
[1773166107713,1.37095647,87.797,87.77,10.6929009]
[1773166108699,1.37095647,87.795,87.771,11.39328479]
[1773166109101,1.37095647,87.795,87.761,11.39458301]
[1773166109294,1.37095647,87.795,87.77,10.6929009]
[1773166109599,1.37095647,87.795,87.761,11.39458301]
[1773166109914,1.37095647,87.795,87.77,3.98749204]
[1773166110813,11.39030002,87.794,87.76,3.98749204]
[1773166111009,1.37095647,87.793,87.76,3.98749204]
[1773166111314,1.37095647,87.779,87.75,3.98749204]
[1773166112416,1.37095647,87.777,87.751,11.39588152]
[1773166112798,1.37095647,87.785,87.76,3.98749204]
[1773166114121,1.37095647,87.785,87.751,11.39588152]
[1773166114446,1.37095647,87.783,87.751,11.39588152]
[1773166114595,1.37095647,87.769,87.727,28.49730437]
[1773166114799,1.37095647,87.749,87.696,28.50736215]
[1773166115101,1.37095647,87.739,87.7,3.98749204]
[1773166116921,1.37095647,87.737,87.701,11.40237853]
[1773166117616,3.98749204,87.76,87.701,11.40237853]
[1773166117617,1.37095647,87.748,87.72,10.69158039]
[1773166118708,1.37095647,87.748,87.71,10.69158039]
[1773166118909,1.37095647,87.746,87.711,39.90377489]
[1773166120810,1.37095647,87.744,87.711,11.40107854]
[1773166121724,1.37095647,87.744,87.72,10.69158039]
[1773166121954,1.37095647,87.752,87.73,10.69158039]
[1773166122104,1.37095647,87.752,87.72,10.69158039]
[1773166122507,1.37095647,87.75,87.72,10.69158039]
[1773166122913,1.37095647,87.75,87.721,11.39977884]
[1773166124004,1.37095647,87.749,87.721,39.89922595]
[1773166124206,1.37095647,87.749,87.721,11.39977884]
[1773166124917,1.37095647,87.747,87.72,10.69158039]
[1773166125299,1.37095647,87.747,87.71,10.69158039]
[1773166125502,1.37095647,87.747,87.72,10.69158039]
[1773166126626,1.37095647,87.747,87.71,10.69158039]
[1773166127625,1.37095647,87.747,87.696,39.91060025]
[1773166127626,1.37095647,87.745,87.711,11.40107854]
[1773166128129,1.37095647,87.745,87.711,39.90377489]
[1773166128324,1.37095647,87.745,87.72,10.69158039]
[1773166128518,1.37095647,87.745,87.711,39.90377489]
[1773166130037,1.37095647,87.745,87.72,10.69158039]
[1773166130325,1.37095647,87.757,87.73,10.69158039]
[1773166133626,1.37095647,87.755,87.73,11.39850072]
[1773166134006,1.37095647,87.755,87.73,22.09008111]
[1773166134203,1.37095647,87.755,87.73,10.69158039]
[1773166134436,1.37095647,87.755,87.72,10.69158039]
[1773166134724,1.37095647,87.755,87.721,11.39977884]
[1773166136326,1.37095647,87.749,87.72,10.69158039]
[1773166136523,1.37095647,87.749,87.721,11.39977884]
[1773166138224,1.37095647,87.747,87.72,3.99133114]
[1773166138526,1.37095647,87.747,87.72,15.3911284]
[1773166139428,1.37095647,87.747,87.72,11.39979726]
[1773166139626,1.37095647,87.747,87.711,11.40107854]
[1773166140236,1.37095647,87.737,87.7,3.99133114]
[1773166140424,1.37095647,87.729,87.696,11.40302864]
[1773166140723,1.37095647,87.729,87.7,3.99133114]
[1773166140925,1.37095647,87.736,87.71,3.99133114]
[1773166141230,1.37095647,87.736,87.7,3.99133114]
[1773166141427,1.42458259,87.745,87.72,3.99133114]
[1773166141428,12.76777719,87.744,87.72,3.99133114]
[1773166141635,1.37095647,87.744,87.72,3.99133114]
[1773166141931,1.37095647,87.743,87.72,3.99133114]
[1773166142126,1.37095647,87.743,87.71,3.99133114]
[1773166142630,1.37095647,87.741,87.711,11.40107854]
[1773166144333,1.37095647,87.741,87.711,39.90377489]
[1773166144838,104.3,87.746,87.72,3.99133114]
[1773166145019,105.67095647,87.746,87.72,3.99133114]
[1773166145937,105.67095647,87.746,87.721,11.39977884]
[1773166146121,1.37095647,87.745,87.721,11.39977884]
[1773166147426,104.3,87.765,87.74,3.99133114]
[1773166147628,1.37095647,87.764,87.74,3.99133114]
[1773166148025,1.37095647,87.764,87.721,39.89922595]
[1773166148227,1.37095647,87.749,87.697,11.40289861]
[1773166148432,1.37095647,87.739,87.7,3.99133114]
[1773166148624,1.37095647,87.739,87.697,11.40289861]
[1773166149516,1.37095647,87.737,87.697,11.40289861]
[1773166149724,1.37095647,87.719,87.693,11.40339289]
[1773166150152,1.37095647,87.719,87.696,11.40302864]
[1773166153437,1.37095647,87.719,87.701,11.40237853]
[1773166155545,1.37095647,87.719,87.696,11.40302864]
[1773166155757,1.37095647,87.718,87.696,11.40302864]
[1773166157636,1.37095647,87.717,87.696,11.40302864]
[1773166158643,1.37095647,87.729,87.696,39.91060025]
[1773166158844,1.37095647,87.728,87.7,3.99373877]
[1773166159052,1.37095647,87.728,87.696,39.91060025]
[1773166159850,1.37095647,87.726,87.696,11.40302864]
[1773166160052,1.37095647,87.719,87.695,11.67504538]
[1773166160232,1.37095647,87.719,87.695,0.2719474]
[1773166160837,1.23498277,87.709,87.678,11.40536964]
[1773166161932,1.23498277,87.708,87.672,0.097745]
[1773166162139,1.23498277,87.708,87.68,3.99373877]
[1773166163144,1.23498277,87.732,87.7,3.99373877]
[1773166163935,11.39847944,87.731,87.701,11.40237853]
[1773166164137,1.23498277,87.73,87.701,11.40237853]
[1773166165636,1.23498277,87.709,87.67,4.09373877]
[1773166165969,1.23498277,87.699,87.671,11.40628029]
[1773166166137,1.23498277,87.697,87.67,0.1]
[1773166166453,11.40276859,87.698,87.628,0.18375511]
[1773166166454,1.20106429,87.679,87.628,0.18375511]
[1773166166647,1.20106429,87.669,87.631,0.18375511]
[1773166166841,39.90969007,87.698,87.628,39.94157118]
[1773166166842,1.20106429,87.659,87.628,11.41187748]
[1773166167048,1.20106429,87.659,87.62,15.50657184]
[1773166167256,1.20106429,87.629,87.581,0.28043533]
[1773166167451,3.69383402,87.657,87.581,0.28043533]